bitfinex-derivatives/quotes_SOLF0:USTF0_20250323
["timestamp","ask_amount","ask_price","bid_price","bid_amount"]
[1742716036741,8.55691926,131.02,131.01,26.5]
[1742716037035,8.55691926,131.02,130.99,34.19371744]
[1742716037239,8.50082998,131.01,130.99,34.19371744]
[1742716038840,8.50082998,131.01,130.99,7.69371744]
[1742716039140,8.50082998,131.01,130.99,34.19371744]
[1742716041141,8.50082998,131.01,131.0,7.6349]
[1742716058460,8.50082998,131.01,130.99,34.19381744]
[1742716062264,0.05608928,131.02,130.99,35.05944742]
[1742716062469,0.05608928,131.02,131.01,8.50082998]
[1742716062857,0.05608928,131.02,131.01,16.13512998]
[1742716066058,7.6311,131.07,131.01,16.13512998]
[1742716066059,8.50082998,131.07,131.04,7.6322]
[1742716066259,8.50082998,131.07,131.04,34.1322]
[1742716066660,7.6301,131.09,131.04,35.00082998]
[1742716066859,8.50082998,131.08,131.04,35.00082998]
[1742716067257,0.04988269,131.07,131.05,0.04932751]
[1742716067459,0.04988269,131.07,131.06,7.6313]
[1742716069363,8.55071267,131.07,131.05,7.68102751]
[1742716072470,8.55071267,131.07,131.06,7.6314]
[1742716075373,8.55071267,131.07,131.05,7.68112751]
[1742716078172,8.50082998,131.06,131.05,7.68112751]
[1742716081877,8.55071267,131.07,131.06,7.6314]
[1742716099388,0.04988269,131.07,131.06,7.6314]
[1742716109097,0.04988269,131.07,131.06,16.13222998]
[1742716109300,8.50082998,131.12,131.11,7.6282]
[1742716110001,2.1378,131.14,131.09,26.48]
[1742716110002,8.50082998,131.13,131.12,7.6279]
[1742716110701,8.55487266,131.14,131.12,26.48]
[1742716110898,0.05404268,131.14,131.12,26.48]
[1742716111093,0.05404268,131.14,131.12,34.1076]
[1742716111700,0.05404268,131.14,131.12,26.48]
[1742716119302,0.05404268,131.14,131.13,16.12812998]
[1742716120201,0.05404268,131.14,131.13,7.6273]
[1742716134607,0.05404268,131.14,131.13,16.12812998]
[1742716135006,8.50082998,131.2,131.13,8.50082998]
[1742716135205,8.50082998,131.22,131.17,8.50082998]
[1742716135410,8.50082998,131.22,131.18,34.96082998]
[1742716135618,8.50082998,131.22,131.2,7.6229]
[1742716135809,8.50082998,131.21,131.19,26.46]
[1742716136004,8.50082998,131.2,131.19,26.46]
[1742716136209,8.50082998,131.2,131.19,26.5127135]
[1742716139315,16.17617177,131.21,131.19,26.5127135]
[1742716139710,8.55307177,131.21,131.19,26.5127135]
[1742716139918,0.05224179,131.21,131.19,34.1365135]
[1742716140814,0.05224179,131.21,131.2,7.6233]
[1742716141020,0.05224179,131.21,131.19,26.5127135]
[1742716143722,0.05224179,131.21,131.19,34.1365135]
[1742716144425,8.55307177,131.21,131.19,34.1365135]
[1742716144923,16.17577177,131.21,131.19,26.5127135]
[1742716145815,8.55307177,131.21,131.19,34.1364135]
[1742716149823,8.55307177,131.21,131.19,26.5127135]
[1742716150727,16.17597177,131.21,131.19,26.5127135]
[1742716151231,8.50082998,131.2,131.19,26.5127135]
[1742716151628,16.12412998,131.2,131.19,26.5127135]
[1742716153429,16.12412998,131.2,131.19,0.0527135]
[1742716153633,7.6247,131.18,131.17,26.46]
[1742716153832,16.12552998,131.18,131.16,26.46]
[1742716154030,8.50082998,131.17,131.16,26.46]
[1742716154335,8.50082998,131.17,131.14,251.6]
[1742716154530,8.50082998,131.17,131.15,26.46]
[1742716154735,8.55744034,131.17,131.15,26.46]
[1742716155430,8.55744034,131.17,131.15,34.0861]
[1742716164045,8.55744034,131.17,131.16,7.6256]
[1742716166741,8.55744034,131.17,131.15,34.0859]
[1742716167349,8.55744034,131.17,131.15,7.6259]
[1742716167549,8.55744034,131.17,131.15,34.0859]
[1742716167847,8.50082998,131.16,131.15,34.0859]
[1742716168644,8.55744034,131.17,131.16,7.6256]
[1742716168840,0.05661036,131.17,131.16,7.6256]
[1742716185161,8.55744034,131.17,131.16,7.6256]
[1742716200574,8.55744034,131.17,131.15,34.0859]
[1742716206086,8.55744034,131.17,131.16,7.6256]
[1742716206379,0.05661036,131.17,131.16,7.6256]
[1742716207082,0.05661036,131.17,131.15,34.0859]
[1742716208082,0.05661036,131.17,131.16,7.6256]
[1742716208977,0.00109153,131.17,131.16,16.12642998]
[1742716209182,28.5813,131.25,131.16,8.50082998]
[1742716209385,8.50082998,131.23,131.18,8.50082998]
[1742716209585,8.50082998,131.23,131.19,26.46]
[1742716209982,8.50082998,131.23,131.19,34.96082998]
[1742716210178,0.04895879,131.22,131.2,0.0574814]
[1742716210782,0.04895879,131.22,131.21,7.6227]
[1742716211581,0.04895879,131.22,131.21,16.12352998]
[1742716244921,0.04895879,131.22,131.21,7.6227]
[1742716247116,0.04895879,131.22,131.2,10.51821138]
[1742716247117,0.04895879,131.22,131.2,16.18141138]
[1742716247321,0.04895879,131.22,131.2,7.6805814]
[1742716249128,0.04895879,131.22,131.2,16.18141138]
[1742716249319,0.04895879,131.22,131.21,16.12352998]
[1742716252324,0.04895879,131.22,131.2,7.6805814]
[1742716252532,0.04895879,131.22,131.21,26.44]
[1742716254131,0.04895879,131.22,131.21,34.0627]
[1742716262631,0.04895879,131.22,131.21,42.56352998]
[1742716278453,5.879e-05,131.22,131.21,42.56352998]
[1742716278962,5.879e-05,131.22,131.21,44.69742998]
[1742716280253,10.62212998,131.3,131.21,37.07472998]
[1742716280453,10.62212998,131.3,131.26,8.50082998]
[1742716280655,8.50082998,131.32,131.28,8.50082998]
[1742716280854,12.67352998,131.33,131.29,8.50082998]
[1742716281452,8.55619841,131.32,131.3,7.66687304]
[1742716282060,8.55619841,131.32,131.31,7.6169]
[1742716282251,0.05536843,131.32,131.31,7.6169]
[1742716282660,0.05536843,131.32,131.31,42.91772998]
[1742716283754,0.05536843,131.32,131.31,294.29772998]
[1742716284949,0.05536843,131.32,131.31,286.68082998]
[1742716285861,0.05536843,131.32,131.31,294.29772998]
[1742716286462,0.02005095,131.39,131.31,286.68082998]
[1742716286663,8.52088093,131.39,131.34,8.50082998]
[1742716286860,8.52088093,131.39,131.35,27.28]
[1742716287559,0.05469132,131.38,131.36,0.05835002]
[1742716290672,7.66759132,131.38,131.36,0.05835002]
[1742716293568,16.1684213,131.38,131.36,0.05835002]
[1742716295071,16.11422998,131.37,131.36,0.05835002]
[1742716296270,16.1686213,131.38,131.36,0.05835002]
[1742716296672,8.5555213,131.38,131.36,0.05835002]
[1742716296873,7.6134,131.37,131.36,0.05835002]
[1742716297775,16.1686213,131.38,131.36,0.05835002]
[1742716297970,8.5555213,131.38,131.36,0.05835002]
[1742716300075,8.5555213,131.38,131.36,7.67225002]
[1742716301369,8.5555213,131.38,131.36,0.05835002]
[1742716301566,8.50082998,131.37,131.36,0.05835002]
[1742716302075,8.50082998,131.37,131.35,27.28]
[1742716302276,8.50082998,131.36,131.35,27.28]
[1742716302472,16.11452998,131.37,131.35,27.28]
[1742716303176,16.11452998,131.37,131.35,27.32863667]
[1742716305378,16.1686213,131.38,131.35,34.94303667]
[1742716305572,0.05469132,131.38,131.35,27.32863667]
[1742716305971,0.05469132,131.38,131.36,7.6136]
[1742716308073,0.05469132,131.38,131.37,7.6134]
[1742716308279,0.05469132,131.38,131.37,16.11422998]
[1742716309283,0.02005095,131.39,131.37,16.11422998]
[1742716309284,0.02005095,131.39,131.38,7.6128]
[1742716309481,0.02005095,131.39,131.38,45.61362998]
[1742716315484,0.02005095,131.39,131.38,29.5]
[1742716315881,0.02005095,131.39,131.37,258.8132]
[1742716316078,8.50082998,131.38,131.37,251.2]
[1742716316276,8.50082998,131.38,131.37,29.7]
[1742716317480,16.11362998,131.38,131.37,29.7]
[1742716317787,8.50082998,131.38,131.37,29.7]
[1742716318390,16.11362998,131.38,131.37,29.7]
[1742716320185,16.11362998,131.38,131.35,7.66293667]
[1742716320489,16.11462998,131.37,131.35,29.70863667]
[1742716320889,8.55784992,131.37,131.35,29.70863667]
[1742716321090,8.55784992,131.37,131.35,7.66313667]
[1742716321393,0.05701994,131.37,131.35,29.68863667]
[1742716321993,0.05701994,131.37,131.35,37.30283667]
[1742716322693,0.05701994,131.37,131.36,7.614]
[1742716324189,0.05701994,131.37,131.36,16.11482998]
[1742716337402,0.02005095,131.39,131.38,7.6128]
[1742716337601,14.58252998,131.47,131.38,291.78082998]
[1742716337801,14.58252998,131.47,131.45,7.6087]
[1742716338000,14.58252998,131.47,131.43,41.08082998]
[1742716338199,8.50082998,131.48,131.44,8.50082998]
[1742716338503,0.0497919,131.46,131.44,33.23794689]
[1742716339002,0.0497919,131.46,131.45,7.6085]
[1742716339898,8.55062188,131.46,131.44,7.66714689]
[1742716340102,8.50082998,131.45,131.38,251.12]
[1742716340404,8.50082998,131.42,131.38,251.12]
[1742716340806,8.50082998,131.43,131.38,259.62082998]
[1742716341011,8.50082998,131.43,131.42,7.6105]
[1742716341307,1.947,131.44,131.41,8.50082998]
[1742716341506,0.05819213,131.44,131.41,8.50082998]
[1742716341699,0.05819213,131.44,131.43,7.6099]
[1742716343009,8.55902211,131.44,131.43,7.62990159]
[1742716345009,0.05819213,131.44,131.43,7.62990159]
[1742716345917,8.55902211,131.44,131.43,7.62990159]
[1742716346314,0.05819213,131.44,131.43,7.62990159]
[1742716348115,8.55902211,131.44,131.43,7.62990159]
[1742716348618,8.55902211,131.44,131.42,0.05407422]
[1742716348814,8.50082998,131.43,131.42,0.05407422]
[1742716349118,8.55902211,131.44,131.42,0.05407422]
[1742716349320,8.55902211,131.44,131.43,7.6099]
[1742716352022,8.55902211,131.44,131.42,0.05407422]
[1742716352223,8.50082998,131.43,131.42,0.05407422]
[1742716352617,8.50082998,131.43,131.4,39.18]
[1742716352916,8.50082998,131.42,131.41,7.6108]
[1742716354116,8.50082998,131.43,131.42,7.61]
[1742716360220,8.50082998,131.43,131.4,0.05484006]
[1742716360424,0.05819213,131.44,131.4,0.05484006]
[1742716360425,8.50082998,131.41,131.4,0.05484006]
[1742716362424,8.50082998,131.41,131.4,7.66654006]
[1742716363025,10.59142998,131.42,131.4,7.66654006]
[1742716364216,18.20202998,131.42,131.4,0.05484006]
[1742716364427,8.50082998,131.41,131.4,0.05484006]
[1742716365023,16.11192998,131.41,131.4,0.05484006]
[1742716366821,20.25672998,131.41,131.4,0.05484006]
[1742716367622,7.6128,131.39,131.37,0.03698888]
[1742716367828,8.50082998,131.38,131.37,0.03698888]
[1742716369031,8.55491677,131.39,131.37,7.65038888]
[1742716369634,8.50082998,131.38,131.37,0.03698888]
[1742716369826,8.50082998,131.38,131.36,0.05036951]
[1742716370027,8.50082998,131.37,131.36,0.05036951]
[1742716370328,16.11422998,131.37,131.36,0.05036951]
[1742716370529,8.50082998,131.37,131.36,0.05036951]
[1742716372234,16.11422998,131.37,131.36,0.05036951]
[1742716375034,8.50082998,131.37,131.36,0.05036951]
[1742716376328,8.50082998,131.37,131.36,7.66436951]
[1742716376628,48.23491677,131.39,131.36,0.05036951]
[1742716377435,48.23491677,131.39,131.37,7.6131]
[1742716377634,8.50082998,131.38,131.37,7.6131]
[1742716378736,8.55491677,131.39,131.36,0.05036951]
[1742716378936,0.05408679,131.39,131.36,0.05036951]
[1742716379136,8.55491677,131.39,131.36,0.05036951]
[1742716379636,8.55491677,131.39,131.37,7.613]
[1742716379833,0.05408679,131.39,131.37,7.613]
[1742716380636,0.05408679,131.39,131.38,7.6128]
[1742716381937,0.05408679,131.39,131.37,7.6131]
[1742716382133,0.05408679,131.39,131.36,0.05036951]
[1742716383037,8.50082998,131.37,131.36,0.05036951]
[1742716383232,16.11422998,131.37,131.36,0.05036951]
[1742716384440,8.50082998,131.37,131.36,0.05036951]
[1742716385743,16.11422998,131.37,131.36,0.05036951]
[1742716386041,8.50082998,131.37,131.36,0.05036951]
[1742716387138,8.50082998,131.38,131.36,7.66396951]
[1742716388237,8.50082998,131.37,131.36,0.05036951]
[1742716389944,16.11422998,131.37,131.36,0.05036951]
[1742716390642,8.50082998,131.37,131.36,0.05036951]
[1742716396754,16.11422998,131.37,131.36,0.05036951]
[1742716408672,7.6152,131.34,131.31,7.6168]
[1742716408869,8.50082998,131.33,131.31,7.6168]
[1742716409062,8.50082998,131.33,131.3,7.68560753]
[1742716409267,8.50082998,131.32,131.3,0.06840753]
[1742716409466,8.50082998,131.31,131.3,0.06840753]
[1742716409667,0.04900405,131.32,131.3,0.06840753]
[1742716410173,0.04900405,131.32,131.31,7.6169]
[1742716417478,8.54983403,131.32,131.31,7.6169]
[1742716417677,8.54983403,131.32,131.3,0.12316601]
[1742716417879,8.50082998,131.31,131.3,0.12316601]
[1742716419675,8.50082998,131.31,131.3,7.74066601]
[1742716419880,8.54983403,131.32,131.3,0.12316601]
[1742716420386,8.54983403,131.32,131.31,7.6169]
[1742716422187,8.54983403,131.32,131.3,7.74036601]
[1742716422481,8.50082998,131.31,131.3,7.74036601]
[1742716422682,8.50082998,131.31,131.3,0.12316601]
[1742716424885,8.54983403,131.32,131.31,7.6169]
[1742716425285,8.54983403,131.32,131.3,0.12316601]
[1742716425488,8.50082998,131.31,131.3,0.12316601]
[1742716428494,16.11772998,131.31,131.3,0.12316601]
[1742716429694,8.50082998,131.31,131.3,0.12316601]
[1742716430490,8.50082998,131.31,131.3,7.74066601]
[1742716431197,8.50082998,131.31,131.3,0.12316601]
[1742716433295,44.44082998,131.31,131.25,2.0256]
[1742716433500,8.50082998,131.27,131.24,35.94]
[1742716433995,8.50082998,131.27,131.25,7.62]
[1742716434391,8.55280857,131.27,131.25,7.67297107]
[1742716435695,16.17220857,131.27,131.25,0.05297107]
[1742716436000,8.50082998,131.26,131.25,0.05297107]
[1742716439997,16.12062998,131.26,131.25,0.05297107]
[1742716440191,16.12062998,131.26,131.21,3.9377]
[1742716440504,8.50082998,131.23,131.22,7.6217]
[1742716441200,8.50082998,131.24,131.22,7.6217]
[1742716441499,8.55650375,131.24,131.22,7.6217]
[1742716444297,8.50082998,131.23,131.21,7.68100612]
[1742716444595,8.50082998,131.22,131.21,7.68100612]
[1742716445003,8.50082998,131.23,131.22,7.622]
[1742716447004,0.05567377,131.24,131.23,7.6215]
[1742716449701,8.55650375,131.24,131.23,7.6215]
[1742716454608,8.55650375,131.24,131.22,7.6219]
[1742716455002,8.55650375,131.24,131.21,0.05850612]
[1742716455003,8.50082998,131.23,131.21,0.05850612]
[1742716455202,0.05567377,131.24,131.21,0.05850612]
[1742716455203,8.50082998,131.22,131.21,0.05850612]
[1742716455399,8.50082998,131.23,131.21,7.68090612]
[1742716456308,8.50082998,131.23,131.21,0.05850612]
[1742716457205,8.55650375,131.24,131.21,0.05850612]
[1742716457807,8.55650375,131.24,131.22,7.6217]
[1742716458011,0.05567377,131.24,131.21,0.05850612]
[1742716458212,0.05567377,131.24,131.21,8.5593361]
[1742716458507,0.05567377,131.24,131.21,0.05850612]
[1742716459305,0.05567377,131.24,131.23,7.6215]
[1742716463710,0.05567377,131.24,131.21,0.05850612]
[1742716463711,8.55650375,131.24,131.21,0.05850612]
[1742716463916,16.12312998,131.22,131.2,0.12654403]
[1742716464106,8.50082998,131.22,131.2,0.12654403]
[1742716464511,16.12352998,131.21,131.2,0.12654403]
[1742716468513,8.50082998,131.21,131.2,0.12654403]
[1742716470920,16.12352998,131.21,131.2,0.12654403]
[1742716476721,7.6233,131.2,131.19,0.05109778]
[1742716476915,16.12412998,131.2,131.19,0.05109778]
[1742716482629,8.50082998,131.2,131.19,0.05109778]
[1742716483922,16.12412998,131.2,131.19,0.05109778]
[1742716484227,8.50082998,131.17,131.16,33.34]
[1742716484422,8.50082998,131.17,131.14,33.36]
[1742716484627,8.50082998,131.16,131.15,7.6258]
[1742716485325,8.5502015,131.17,131.16,7.6256]
[1742716489725,8.5502015,131.17,131.15,7.6259]
[1742716496048,8.5502015,131.17,131.16,7.6256]
[1742716496844,8.5502015,131.17,131.15,7.6259]
[1742716499957,8.5502015,131.17,131.16,7.6256]
[1742716500855,8.5502015,131.17,131.15,7.626]
[1742716501049,8.5502015,131.17,131.14,0.0570332]
[1742716501050,8.50082998,131.16,131.14,0.0570332]
[1742716501254,8.50082998,131.15,131.14,0.0570332]
[1742716502754,16.12702998,131.15,131.14,0.0570332]
[1742716503051,8.50082998,131.15,131.14,0.0570332]
[1742716505453,16.12702998,131.15,131.14,0.0570332]
[1742716507055,8.50082998,131.15,131.14,0.0570332]
[1742716507858,16.12702998,131.15,131.14,0.0570332]
[1742716508454,8.50082998,131.15,131.14,0.0570332]
[1742716510450,16.12702998,131.15,131.14,0.0570332]
[1742716511158,7.6269,131.14,131.11,7.6282]
[1742716511459,8.50082998,131.12,131.11,7.6282]
[1742716511967,8.50082998,131.12,131.1,7.6288]
[1742716512259,7.6274,131.13,131.1,7.6288]
[1742716512260,8.50082998,131.11,131.1,7.6288]
[1742716512451,8.50082998,131.11,131.1,7.68542262]
[1742716514756,0.05832778,131.12,131.11,7.6285]
[1742716515350,0.05832778,131.12,131.11,48.04932998]
[1742716519261,0.05832778,131.12,131.11,39.5485]
[1742716520960,0.05832778,131.12,131.11,48.04932998]
[1742716522867,8.50082998,131.16,131.15,7.6262]
[1742716524965,8.54981369,131.17,131.16,7.6256]
[1742716529470,0.04898371,131.17,131.16,7.6256]
[1742716530862,8.54981369,131.17,131.16,7.6256]
[1742716534971,8.54981369,131.17,131.14,31.64918323]
[1742716535172,8.50082998,131.16,131.14,31.64918323]
[1742716535874,8.50082998,131.15,131.14,31.64918323]
[1742716536372,8.50082998,131.15,131.14,0.04918323]
[1742716536672,16.12702998,131.15,131.14,0.04918323]
[1742716537472,16.12702998,131.15,131.11,31.08]
[1742716537473,7.6275,131.13,131.11,31.08]
[1742716537771,8.50082998,131.12,131.11,31.08]
[1742716537972,8.50082998,131.12,131.1,7.6286]
[1742716538774,8.50082998,131.11,131.1,0.05721489]
[1742716548580,8.50082998,131.11,131.1,7.68631489]
[1742716549584,8.55609577,131.12,131.11,7.6285]
[1742716553483,0.05526579,131.12,131.11,7.6285]
[1742716553684,0.05526579,131.12,131.11,16.12932998]
[1742716554883,0.05526579,131.12,131.11,7.6285]
[1742716557080,0.05526579,131.12,131.11,16.12932998]
[1742716557383,8.50082998,131.15,131.14,7.6268]
[1742716558585,0.05257537,131.16,131.13,30.67014374]
[1742716558882,8.50082998,131.2,131.15,8.50082998]
[1742716559185,8.50082998,131.19,131.17,7.6246]
[1742716559489,8.50082998,131.18,131.14,30.98]
[1742716559672,8.50082998,131.15,131.14,38.6065]
[1742716560585,8.55138968,131.17,131.14,30.98]
[1742716562485,8.55138968,131.17,131.16,7.6256]
[1742716563886,0.0505597,131.17,131.16,7.6256]
[1742716570694,0.0505597,131.17,131.16,16.12642998]
[1742716572994,8.50082998,131.21,131.2,7.6232]
[1742716573388,8.50082998,131.21,131.19,7.6236]
[1742716573989,8.55741694,131.21,131.19,7.67238034]
[1742716575097,8.50082998,131.2,131.19,0.04878034]
[1742716576697,16.12412998,131.2,131.19,0.04878034]
[1742716578701,7.6248,131.18,131.16,31.98]
[1742716578893,8.50082998,131.17,131.11,8.50082998]
[1742716579097,8.50082998,131.15,131.13,31.94]
[1742716579311,8.50082998,131.16,131.14,7.6264]
[1742716579899,8.54944586,131.16,131.14,7.68286425]
[1742716581002,8.50082998,131.15,131.14,0.05646425]
[1742716582400,16.12702998,131.15,131.14,0.05646425]
[1742716585709,7.6275,131.13,131.07,260.25497754]
[1742716585906,8.50082998,131.11,131.08,31.66]
[1742716586105,8.50082998,131.1,131.09,7.6293]
[1742716587803,8.55054182,131.11,131.09,7.6293]
[1742716589113,8.55054182,131.11,131.1,7.6291]
[1742716592115,0.04971184,131.11,131.1,7.6291]
[1742716595121,0.04971184,131.11,131.09,7.6295]
[1742716595419,8.55054182,131.11,131.09,7.6295]
[1742716601419,8.55054182,131.11,131.1,7.6291]
[1742716603418,0.04971184,131.11,131.09,7.6294]
[1742716605730,8.55054182,131.11,131.09,7.6294]
[1742716606627,16.17924182,131.11,131.08,38.92564976]
[1742716608828,8.55054182,131.11,131.08,38.92564976]
[1742716609633,8.55054182,131.11,131.09,7.6297]
[1742716614130,8.50082998,131.1,131.07,0.23414756]
[1742716614434,8.50082998,131.08,131.01,81.78158659]
[1742716614729,8.50082998,131.06,131.01,81.78158659]
[1742716615532,0.05464946,131.05,131.04,7.6323]
[1742716620542,8.50082998,131.1,131.04,38.98082998]
[1742716620744,251.68,131.15,131.07,8.50082998]
[1742716621044,5.9605,131.16,131.04,30.48]
[1742716621045,8.50082998,131.14,131.12,7.6278]
[1742716621239,8.50082998,131.14,131.12,38.1078]
[1742716621639,8.54886129,131.14,131.12,38.15984345]
[1742716622245,8.54886129,131.14,131.13,7.6273]
[1742716622647,0.04803131,131.14,131.13,7.6273]
[1742716629539,8.54886129,131.14,131.13,7.6273]
[1742716629745,8.54886129,131.14,131.12,38.15974345]
[1742716629945,8.50082998,131.13,131.12,38.15974345]
[1742716630345,8.50082998,131.13,131.12,37.85974345]
[1742716634650,8.54886129,131.14,131.13,7.6273]
[1742716635448,0.04803131,131.14,131.13,7.6273]
[1742716635855,2.08,131.24,131.13,16.12082998]
[1742716636054,8.50082998,131.21,131.16,8.50082998]
[1742716636251,8.50082998,131.21,131.17,29.98]
[1742716636852,8.50082998,131.21,131.2,7.6233]
[1742716638559,8.50082998,131.21,131.19,7.6237]
[1742716638965,0.05138525,131.22,131.2,7.6232]
[1742716639159,8.55221523,131.22,131.2,37.5032]
[1742716641962,8.50082998,131.21,131.2,37.5032]
[1742716645169,8.50082998,131.21,131.18,0.04995221]
[1742716645363,8.50082998,131.19,131.18,0.04995221]
[1742716646468,8.50082998,131.2,131.18,0.04995221]
[1742716646968,8.50082998,131.2,131.19,7.6237]
[1742716647168,8.50082998,131.2,131.18,0.04995221]
[1742716647561,8.50082998,131.2,131.18,7.67415221]
[1742716647868,8.50082998,131.2,131.18,0.04995221]
[1742716648570,8.50082998,131.19,131.18,0.04995221]
[1742716650372,8.50082998,131.21,131.18,0.04995221]
[1742716650567,8.55221523,131.22,131.18,0.04995221]
[1742716650968,0.05138525,131.22,131.2,8.50082998]
[1742716651272,0.05138525,131.22,131.21,38.08082998]
[1742716651771,0.05138525,131.22,131.21,45.70352998]
[1742716651966,0.05138525,131.22,131.21,37.2027]
[1742716656972,8.55221523,131.22,131.21,29.58]
[1742716659475,16.17431523,131.22,131.21,29.58]
[1742716659670,16.17431523,131.22,131.19,36.9836]
[1742716659974,8.50082998,131.21,131.19,36.9836]
[1742716661775,8.50082998,131.21,131.19,7.6236]
[1742716664068,16.12352998,131.21,131.18,36.95415221]
[1742716664276,8.50082998,131.19,131.18,36.95415221]
[1742716669887,8.50082998,131.2,131.18,36.95415221]
[1742716671088,8.50082998,131.2,131.19,7.6239]
[1742716671489,8.50082998,131.2,131.18,29.32995221]
[1742716671883,8.50082998,131.2,131.19,7.6239]
[1742716672589,8.50082998,131.21,131.2,7.6232]
[1742716673883,8.50082998,131.21,131.19,7.6236]
[1742716682595,8.50082998,131.2,131.19,7.6236]
[1742716684196,8.50082998,131.21,131.2,7.6233]
[1742716684498,8.55221523,131.22,131.18,37.83078219]
[1742716685700,8.55221523,131.22,131.21,7.6227]
[1742716686701,8.55221523,131.22,131.2,7.623]
[1742716688195,8.55221523,131.22,131.21,7.6227]
[1742716700204,251.48,131.3,131.21,7.6227]
[1742716700205,31.28775191,131.32,131.21,37.00082998]
[1742716700402,32.487,131.32,131.23,8.50082998]
[1742716700604,8.50082998,131.28,131.24,28.48]
[1742716700802,8.50082998,131.28,131.26,7.6192]
[1742716701002,8.50082998,131.29,131.26,7.6192]
[1742716701506,8.55111427,131.29,131.26,7.66974669]
[1742716701906,8.55111427,131.29,131.27,7.6192]
[1742716702204,8.50082998,131.28,131.27,7.6192]
[1742716703906,8.50082998,131.28,131.26,7.66994669]
[1742716707210,8.50082998,131.28,131.27,7.6192]
[1742716707713,36.84082998,131.28,131.26,0.05054669]
[1742716707914,8.50082998,131.27,131.2,279.82]
[1742716708111,8.50082998,131.23,131.2,279.82]
[1742716708316,8.50082998,131.23,131.21,7.6224]
[1742716709009,8.55840934,131.23,131.21,7.67134861]
[1742716709916,8.50082998,131.22,131.21,7.67134861]
[1742716711215,8.50082998,131.22,131.21,0.04894861]
[1742716712022,16.12292998,131.22,131.21,0.04894861]
[1742716721128,7.6237,131.2,131.17,7.6248]
[1742716721329,8.50082998,131.19,131.17,7.6248]
[1742716722333,8.55724311,131.19,131.17,7.67585778]
[1742716723833,0.05641313,131.19,131.18,7.6244]
[1742716738043,8.55724311,131.19,131.17,7.67585778]
[1742716744147,8.50082998,131.18,131.17,0.05105778]
[1742716744752,16.12522998,131.18,131.17,0.05105778]
[1742716746153,8.50082998,131.18,131.17,0.05105778]
[1742716746852,8.50082998,131.18,131.17,7.67605778]
[1742716747348,8.55724311,131.19,131.18,7.6244]
[1742716748758,8.55724311,131.19,131.17,7.67575778]
[1742716748952,8.50082998,131.18,131.17,0.05105778]
[1742716749254,16.12522998,131.18,131.17,0.05105778]
[1742716749458,8.50082998,131.18,131.17,0.05105778]
[1742716751560,16.12522998,131.18,131.17,0.05105778]
[1742716753360,8.50082998,131.15,131.12,28.62]
[1742716753654,8.50082998,131.15,131.13,7.6273]
[1742716754252,8.50082998,131.15,131.12,28.62]
[1742716754456,8.55591425,131.15,131.13,0.05442068]
[1742716755457,8.55591425,131.15,131.13,7.68142068]
[1742716756158,8.50082998,131.14,131.13,0.05442068]
[1742716757159,8.50082998,131.14,131.13,7.68172068]
[1742716757461,8.55591425,131.15,131.13,0.05442068]
[1742716757958,8.55591425,131.15,131.14,7.6268]
[1742716776762,0.05508427,131.15,131.14,7.6268]
[1742716778066,0.05508427,131.15,131.14,16.12762998]
[1742716779360,0.05508427,131.15,131.14,7.6268]
[1742716782770,0.05508427,131.15,131.13,36.14162068]
[1742716783875,8.55591425,131.15,131.13,28.51442068]
[1742716784777,8.50082998,131.14,131.13,28.51442068]
[1742716785076,8.50082998,131.14,131.13,0.05442068]
[1742716786074,16.12762998,131.14,131.09,10.64018915]
[1742716786279,8.50082998,131.1,131.09,10.64018915]
[1742716786880,8.50082998,131.11,131.09,10.64018915]
[1742716787381,8.55423932,131.11,131.09,10.6986234]
[1742716787575,8.55423932,131.11,131.09,0.05843425]
[1742716788180,8.55423932,131.11,131.1,7.6291]
[1742716789884,0.05340934,131.11,131.1,7.6291]
[1742716790489,0.05340934,131.11,131.1,16.12992998]
[1742716800298,0.05340934,131.11,131.1,7.6291]
[1742716803303,7.6257,131.16,131.13,7.6273]
[1742716803601,7.6257,131.16,131.13,35.8273]
[1742716804602,7.67993912,131.16,131.13,35.88547153]
[1742716805306,0.05423912,131.16,131.14,7.6265]
[1742716805503,0.05423912,131.16,131.13,28.25817153]
[1742716805905,0.05423912,131.16,131.15,7.6262]
[1742716811909,3.993,131.25,131.22,7.6221]
[1742716812120,3.993,131.25,131.19,28.08]
[1742716812315,11.6135,131.25,131.19,28.08]
[1742716812509,11.6135,131.25,131.22,7.622]
[1742716813013,11.6135,131.25,131.22,7.6218]
[1742716813210,4.04916917,131.25,131.22,0.05253137]
[1742716813407,0.05616917,131.25,131.22,0.05253137]
[1742716813608,0.05616917,131.25,131.22,28.13253137]
[1742716814215,7.67656917,131.25,131.22,28.13253137]
[1742716814513,0.05616917,131.25,131.22,28.13253137]